[Event "8th Mersin Open 2024"]
[Site "Mersin"]
[Date "2024.11.13"]
[Round "5"]
[White "Koksal, Ege"]
[Black "Golshaani, Taha"]
[Result "1-0"]
[ECO "A29"]
[WhiteElo "2316"]
[BlackElo "2026"]
[Annotator "RC"]
[PlyCount "91"]
[EventDate "2024.11.10"]
[EventType "swiss"]
[EventCountry "TUR"]
[SourceTitle "playchess.com"]
[Source "ChessBase"]
[SourceQuality "1"]
[TimeControl "5400+30"]

1. c4 {[%emt 0:01:00]} Nf6 {[%emt 0:11:00]} 2. Nc3 {[%emt 0:00:30]} e5 {[%emt 0:00:30]} 3. g3 {[%emt 0:00:00]} d5 {[%emt 0:00:00]} 4. cxd5 {[%emt 0:00:00]} Nxd5 {[%emt 0:00:00]} 5. Bg2 {[%emt 0:00:30]} Nb6 {[%emt 0:00:30]} 6. Nf3 {[%emt 0:00:30]} Nc6 {[%emt 0:00:30]} 7. O-O {[%emt 0:00:30]} Be7 {[%emt 0:00:30]} 8. Rb1 {[%emt 0:00:30]} a5 {[%emt 0:01:30]} 9. a3 {[%emt 0:02:30]} O-O {[%emt 0:07:30]} 10. b4 {[%emt 0:00:30]} f6 {[%emt 0:03:30]} 11. b5 {[%emt 0:04:30]} Nd4 {[%emt 0:00:30]} 12. Nxd4 {[%emt 0:03:30]} Qxd4 {[%emt 0:07:30]} 13. Qb3+ {[%emt 0:00:30]} Kh8 {[%emt 0:00:30]} 14. d3 {[%emt 0:00:00]} a4 {[%emt 0:00:30]} 15. Qc2 {[%emt 0:00:00]} Be6 {[%emt 0:03:30]} 16. Bxb7 {[%emt 0:09:30]} Rab8 {[%emt 0:05:30]} 17. Bc6 {[%emt 0:03:30]} Bb3 {[%emt 0:00:30]} 18. Rxb3 {[%emt 0:00:30]} axb3 {[%emt 0:00:30]} 19. Qxb3 {[%emt 0:02:30]} f5 {[%emt 0:08:30]} 20. Bb2 {[%emt 0:01:30]} Qd6 {[%emt 0:05:30]} 21. a4 {[%emt 0:07:30]} Nc8 {[%emt 0:04:30]} 22. Qa2 {[%emt 0:07:30]} Na7 {[%emt 0:02:30]} 23. Bf3 {[%emt 0:00:30]} c6 {[%emt 0:04:30]} 24. bxc6 {[%emt 0:05:30]} Nxc6 {[%emt 0:00:30]} 25. Nb5 {[%emt 0:00:30]} Qf6 {[%emt 0:05:30]} 26. Rc1 {[%emt 0:14:30]} Nd8 {[%emt 0:09:10]} 27. Qa1 {[%emt 0:02:30]} Qb6 {[%emt 0:01:30]} 28. Bxe5 {[%emt 0:01:30]} Bf6 {[%emt 0:00:31]} 29. Qa3 {[%emt 0:00:30]} Nf7 {[%emt 0:01:33]} 30. Bxb8 {[%emt 0:00:30]} Rxb8 {[%emt 0:00:00]} 31. Qc5 {[%emt 0:01:30]} Qa5 {[%emt 0:00:11]} 32. Nd6 {[%emt 0:00:30]} Qxc5 {[%emt 0:00:51]} 33. Nxf7+ {[%emt 0:00:30]} Kg8 {[%emt 0:00:00]} 34. Rxc5 {[%emt 0:00:30]} Kxf7 {[%emt 0:00:13]} 35. Rxf5 {[%emt 0:00:00]} Rb1+ {[%emt 0:00:32]} 36. Kg2 {[%emt 0:00:00]} Ra1 {[%emt 0:00:00]} 37. Ra5 {[%emt 0:01:30]} Bc3 {[%emt 0:00:00]} 38. Rc5 {[%emt 0:00:30]} Bb4 {[%emt 0:00:40]} 39. Rc4 {[%emt 0:00:30]} Bd2 {[%emt 0:00:30]} 40. Rc2 {[%emt 0:00:00]} Ba5 {[%emt 0:00:00]} 41. Bd5+ {[%emt 0:00:00]} Ke7 {[%emt 0:00:30]} 42. Ba2 {[%emt 0:00:30]} Kd6 {[%emt 0:00:00]} 43. d4 {[%emt 0:00:00]} Rd1 {[%emt 0:00:18]} 44. e3 {[%emt 0:00:00]} Ra1 {[%emt 0:00:01]} 45. Bc4 {[%emt 0:07:30]} Rxa4 {[%emt 0:00:58]} 46. Ra2 {[%emt 0:00:30]} 1-0

[Event "8th Mersin Open 2024"]
[Site "Mersin"]
[Date "2024.11.13"]
[Round "5"]
[White "Odeev, Handszar"]
[Black "Primbetov, Kazbek"]
[Result "1/2-1/2"]
[ECO "B52"]
[WhiteElo "2264"]
[BlackElo "2059"]
[Annotator "RC"]
[PlyCount "24"]
[EventDate "2024.11.10"]
[EventType "swiss"]
[EventCountry "TUR"]
[SourceTitle "playchess.com"]
[Source "ChessBase"]
[SourceQuality "1"]
[TimeControl "5400+30"]

1. e4 {[%emt 0:01:00]} c5 {[%emt 0:01:00]} 2. Nf3 {[%emt 0:00:30]} d6 {[%emt 0:00:30]} 3. Bb5+ {[%emt 0:00:30]} Bd7 {[%emt 0:00:00]} 4. Bxd7+ {[%emt 0:00:00]} Qxd7 {[%emt 0:00:00]} 5. O-O {[%emt 0:00:00]} Nc6 {[%emt 0:00:00]} 6. c3 {[%emt 0:00:00]} Nf6 {[%emt 0:00:00]} 7. Re1 {[%emt 0:00:00]} e6 {[%emt 0:00:00]} 8. d4 {[%emt 0:00:30]} cxd4 {[%emt 0:00:00]} 9. cxd4 {[%emt 0:00:00]} d5 {[%emt 0:00:30]} 10. e5 {[%emt 0:00:00]} Ne4 {[%emt 0:00:30]} 11. Nbd2 {[%emt 0:00:30]} Nxd2 {[%emt 0:00:00]} 12. Bxd2 {[%emt 0:00:30]} Be7 {[%emt 0:00:00]} 1/2-1/2

[Event "8th Mersin Open 2024"]
[Site "Mersin"]
[Date "2024.11.13"]
[Round "5"]
[White "Abbasi Abeluie, Mohammad Mehdi"]
[Black "Bicer, Atakan Mert"]
[Result "1-0"]
[ECO "E62"]
[WhiteElo "2218"]
[BlackElo "2342"]
[Annotator "RC"]
[PlyCount "183"]
[EventDate "2024.11.10"]
[EventType "swiss"]
[EventCountry "TUR"]
[SourceTitle "playchess.com"]
[Source "ChessBase"]
[SourceQuality "1"]
[TimeControl "5400+30"]

1. c4 {[%emt 0:02:00]} g6 {[%emt 0:01:00]} 2. d4 {[%emt 0:01:30]} Nf6 {[%emt 0:00:00]} 3. Nf3 Bg7 {[%emt 0:00:00]} 4. g3 {[%emt 0:00:00]} O-O {[%emt 0:03:30]} 5. Bg2 {[%emt 0:00:00]} Nc6 {[%emt 0:00:30]} 6. O-O {[%emt 0:01:00]} d6 {[%emt 0:00:30]} 7. Nc3 {[%emt 0:00:30]} e5 {[%emt 0:02:30]} 8. dxe5 {[%emt 0:00:30]} dxe5 {[%emt 0:05:30]} 9. Bg5 {[%emt 0:01:30]} Be6 {[%emt 0:07:30]} 10. Qc1 {[%emt 0:02:30]} Qc8 {[%emt 0:03:30]} 11. Rd1 {[%emt 0:05:30]} Re8 {[%emt 0:05:30]} 12. Nd5 {[%emt 0:05:30]} Nd7 {[%emt 0:04:30]} 13. Bh6 {[%emt 0:17:30]} f6 {[%emt 0:09:30]} 14. Bxg7 {[%emt 0:10:30]} Kxg7 {[%emt 0:00:00]} 15. Qc3 {[%emt 0:00:30]} Ne7 {[%emt 0:05:00]} 16. Nxe7 {[%emt 0:03:30]} Rxe7 {[%emt 0:00:30]} 17. c5 {[%emt 0:00:00]} a5 {[%emt 0:16:30]} 18. c6 {[%emt 0:02:00]} bxc6 {[%emt 0:00:30]} 19. Qxc6 {[%emt 0:00:00]} Rb8 {[%emt 0:00:30]} 20. b3 {[%emt 0:01:00]} Rb6 {[%emt 0:06:30]} 21. Qc3 {[%emt 0:00:30]} Qa6 {[%emt 0:01:30]} 22. Nd2 {[%emt 0:16:30]} Nf8 {[%emt 0:06:30]} 23. e3 {[%emt 0:11:07]} a4 {[%emt 0:07:38]} 24. Bf1 {[%emt 0:03:19]} Qa8 {[%emt 0:00:11]} 25. Qc5 {[%emt 0:02:18]} Kf7 {[%emt 0:04:20]} 26. Bg2 {[%emt 0:04:39]} Qa6 {[%emt 0:00:53]} 27. Bf1 {[%emt 0:00:30]} Qa8 {[%emt 0:01:50]} 28. Nc4 {[%emt 0:01:42]} Ra6 {[%emt 0:03:41]} 29. Qb5 {[%emt 0:00:56]} Ra7 {[%emt 0:00:56]} 30. Bg2 {[%emt 0:01:23]} Qc8 {[%emt 0:01:06]} 31. Na5 {[%emt 0:01:23]} Qa6 {[%emt 0:00:58]} 32. Qxa6 {[%emt 0:00:59]} Rxa6 {[%emt 0:00:35]} 33. Nc6 {[%emt 0:00:04]} Rd7 {[%emt 0:00:11]} 34. Nd8+ {[%emt 0:02:56]} Ke7 {[%emt 0:00:56]} 35. Nxe6 {[%emt 0:01:55]} Nxe6 {[%emt 0:00:44]} 36. Rxd7+ {[%emt 0:01:12]} Kxd7 {[%emt 0:00:30]} 37. Bf1 {[%emt 0:00:00]} Ra7 {[%emt 0:01:33]} 38. Bb5+ {[%emt 0:00:27]} c6 {[%emt 0:00:29]} 39. Rd1+ {[%emt 0:01:56]} Kc7 {[%emt 0:00:30]} 40. Rc1 {[%emt 0:00:00]} axb3 {[%emt 0:00:00]} 41. Rxc6+ {[%emt 0:00:33]} Kb7 {[%emt 0:00:41]} 42. axb3 {[%emt 0:00:39]} Nc7 {[%emt 0:01:24]} 43. Ba4 {[%emt 0:00:05]} Ra6 {[%emt 0:00:11]} 44. Rxa6 {[%emt 0:00:27]} Kxa6 {[%emt 0:00:37]} 45. Kg2 {[%emt 0:00:39]} Ka5 {[%emt 0:00:31]} 46. Kf3 {[%emt 0:00:12]} Nd5 {[%emt 0:00:57]} 47. Be8 {[%emt 0:00:54]} Kb4 {[%emt 0:00:45]} 48. Bf7 {[%emt 0:00:08]} Ne7 {[%emt 0:00:08]} 49. g4 {[%emt 0:00:25]} Kc5 {[%emt 0:00:26]} 50. Ke4 {[%emt 0:00:30]} Kd6 {[%emt 0:00:32]} 51. b4 {[%emt 0:00:56]} f5+ {[%emt 0:00:11]} 52. gxf5 {[%emt 0:00:30]} gxf5+ {[%emt 0:00:10]} 53. Kd3 {[%emt 0:00:00]} e4+ {[%emt 0:00:49]} 54. Kc3 {[%emt 0:00:50]} h6 {[%emt 0:00:25]} 55. Kb3 {[%emt 0:00:36]} Nc6 {[%emt 0:00:52]} 56. Bg6 {[%emt 0:01:06]} Ke6 {[%emt 0:00:26]} 57. Bh5 {[%emt 0:00:22]} Ne5 {[%emt 0:00:51]} 58. Be2 {[%emt 0:00:30]} Kd5 {[%emt 0:00:30]} 59. Kc3 {[%emt 0:00:00]} Kd6 {[%emt 0:00:00]} 60. Kd4 {[%emt 0:00:13]} Nc6+ {[%emt 0:00:02]} 61. Kc3 {[%emt 0:00:15]} Ne5 {[%emt 0:00:16]} 62. h3 {[%emt 0:01:10]} Kd5 {[%emt 0:00:22]} 63. Kb3 {[%emt 0:00:43]} Kd6 {[%emt 0:00:19]} 64. h4 {[%emt 0:00:16]} Kd5 {[%emt 0:00:41]} 65. h5 {[%emt 0:00:10]} Kc6 {[%emt 0:00:28]} 66. Kc3 {[%emt 0:00:05]} Kd5 {[%emt 0:00:48]} 67. b5 {[%emt 0:00:30]} Kc5 {[%emt 0:00:30]} 68. b6 {[%emt 0:00:06]} Kxb6 {[%emt 0:00:06]} 69. Kd4 {[%emt 0:00:02]} Nc6+ {[%emt 0:00:21]} 70. Kd5 {[%emt 0:00:30]} Kc7 {[%emt 0:00:00]} 71. Bb5 {[%emt 0:00:55]} Nb4+ {[%emt 0:00:13]} 72. Ke6 {[%emt 0:00:30]} Nd3 {[%emt 0:00:30]} 73. f4 {[%emt 0:00:30]} Nf2 {[%emt 0:00:30]} 74. Kxf5 {[%emt 0:00:30]} Kd6 {[%emt 0:00:30]} 75. Bf1 {[%emt 0:00:30]} Ke7 {[%emt 0:02:27]} 76. Bg2 {[%emt 0:01:44]} Kd6 {[%emt 0:00:30]} 77. Bf1 {[%emt 0:00:30]} Ke7 {[%emt 0:00:30]} 78. Ba6 {[%emt 0:00:51]} Kf7 {[%emt 0:00:42]} 79. Bb7 {[%emt 0:00:11]} Ke7 {[%emt 0:00:23]} 80. Ke5 {[%emt 0:00:29]} Nd3+ {[%emt 0:00:44]} 81. Kd4 {[%emt 0:00:09]} Kf6 {[%emt 0:01:01]} 82. Bxe4 {[%emt 0:00:08]} Nf2 {[%emt 0:00:08]} 83. Bg6 {[%emt 0:00:32]} Nh3 {[%emt 0:00:41]} 84. Ke4 {[%emt 0:00:14]} Ng1 {[%emt 0:00:33]} 85. Kd3 {[%emt 0:00:12]} Ke6 {[%emt 0:00:00]} 86. e4 {[%emt 0:00:37]} Nf3 {[%emt 0:00:43]} 87. Ke3 {[%emt 0:00:29]} Ne1 {[%emt 0:00:23]} 88. e5 {[%emt 0:00:38]} Ng2+ {[%emt 0:00:30]} 89. Ke4 {[%emt 0:00:00]} Ke7 {[%emt 0:00:20]} 90. f5 {[%emt 0:00:18]} Kd7 {[%emt 0:00:14]} 91. Bf7 {[%emt 0:00:15]} Ke7 {[%emt 0:00:29]} 92. Bb3 {[%emt 0:00:35]} 1-0

[Event "8th Mersin Open 2024"]
[Site "Mersin"]
[Date "2024.11.13"]
[Round "5"]
[White "Kazimova, Narmin"]
[Black "Gulsoy, Mustafa Alpago"]
[Result "0-1"]
[ECO "C14"]
[WhiteElo "2155"]
[BlackElo "2040"]
[Annotator "RC"]
[PlyCount "92"]
[EventDate "2024.11.10"]
[EventType "swiss"]
[EventCountry "TUR"]
[SourceTitle "playchess.com"]
[Source "ChessBase"]
[SourceQuality "1"]
[TimeControl "5400+30"]

1. d4 {[%emt 0:01:00]} e6 {[%emt 0:01:00]} 2. e4 {[%emt 0:01:30]} d5 {[%emt 0:00:30]} 3. Nc3 {[%emt 0:00:30]} Nf6 {[%emt 0:00:00]} 4. Bg5 {[%emt 0:00:00]} Be7 {[%emt 0:00:00]} 5. e5 {[%emt 0:00:00]} Nfd7 {[%emt 0:00:30]} 6. Bxe7 {[%emt 0:00:30]} Qxe7 {[%emt 0:00:00]} 7. f4 {[%emt 0:00:30]} a6 {[%emt 0:00:00]} 8. Nf3 {[%emt 0:00:00]} c5 {[%emt 0:00:30]} 9. dxc5 {[%emt 0:00:00]} Nc6 {[%emt 0:00:30]} 10. Bd3 {[%emt 0:01:30]} Qxc5 {[%emt 0:00:30]} 11. Qd2 {[%emt 0:00:30]} b5 {[%emt 0:01:30]} 12. Ne2 {[%emt 0:00:30]} Nb6 {[%emt 0:07:30]} 13. c3 {[%emt 0:28:30]} Bd7 {[%emt 0:21:30]} 14. Ned4 {[%emt 0:02:30]} Nc4 {[%emt 0:04:30]} 15. Qe2 {[%emt 0:09:30]} g6 {[%emt 0:02:30]} 16. O-O {[%emt 0:08:30]} Rb8 {[%emt 0:06:30]} 17. Kh1 {[%emt 0:04:30]} Ne7 {[%emt 0:07:30]} 18. b3 {[%emt 0:03:30]} Nb6 {[%emt 0:04:30]} 19. Rac1 {[%emt 0:00:00]} Rc8 {[%emt 0:03:30]} 20. a4 {[%emt 0:10:00]} bxa4 {[%emt 0:02:30]} 21. Bxa6 {[%emt 0:00:30]} Ra8 {[%emt 0:00:30]} 22. b4 {[%emt 0:07:30]} Qc7 {[%emt 0:00:30]} 23. Nb5 {[%emt 0:04:53]} Bxb5 {[%emt 0:01:30]} 24. Bxb5+ {[%emt 0:00:30]} Kf8 {[%emt 0:00:30]} 25. Nd4 {[%emt 0:01:58]} h5 {[%emt 0:02:30]} 26. Qf3 {[%emt 0:04:09]} Kg7 {[%emt 0:02:30]} 27. Qg3 {[%emt 0:01:28]} Nf5 {[%emt 0:05:30]} 28. Nxf5+ {[%emt 0:04:04]} exf5 {[%emt 0:00:30]} 29. Rfe1 {[%emt 0:00:01]} Qe7 {[%emt 0:01:30]} 30. Qe3 {[%emt 0:02:03]} Qe6 {[%emt 0:00:30]} 31. Red1 {[%emt 0:01:23]} Rhc8 {[%emt 0:04:30]} 32. Qd4 {[%emt 0:00:30]} a3 {[%emt 0:00:30]} 33. Ra1 {[%emt 0:00:00]} Rc7 {[%emt 0:09:17]} 34. Ra2 {[%emt 0:01:06]} h4 {[%emt 0:01:05]} 35. h3 {[%emt 0:00:12]} Nc4 {[%emt 0:02:28]} 36. Qxd5 {[%emt 0:03:28]} Nb2 {[%emt 0:00:12]} 37. c4 {[%emt 0:01:10]} Nxc4 {[%emt 0:00:19]} 38. Rd3 {[%emt 0:00:32]} Rb8 {[%emt 0:01:01]} 39. Bxc4 {[%emt 0:00:30]} Rxc4 {[%emt 0:00:00]} 40. Raxa3 {[%emt 0:00:00]} Rc1+ {[%emt 0:01:12]} 41. Kh2 {[%emt 0:00:18]} Rxb4 {[%emt 0:00:00]} 42. Rac3 {[%emt 0:01:12]} Rxc3 {[%emt 0:01:44]} 43. Rxc3 {[%emt 0:00:30]} Rxf4 {[%emt 0:00:00]} 44. Rc8 {[%emt 0:00:25]} Re4 {[%emt 0:00:35]} 45. Re8 {[%emt 0:00:01]} Re1 {[%emt 0:00:24]} 46. g4 {[%emt 0:00:59]} Re2+ {[%emt 0:01:38]} 0-1

[Event "8th Mersin Open 2024"]
[Site "Mersin"]
[Date "2024.11.13"]
[Round "5"]
[White "Biriya, Mohammadamin"]
[Black "Ikonnikov, Vyacheslav"]
[Result "1/2-1/2"]
[ECO "E10"]
[WhiteElo "2139"]
[BlackElo "2465"]
[Annotator "RC"]
[PlyCount "113"]
[EventDate "2024.11.10"]
[EventType "swiss"]
[EventCountry "TUR"]
[SourceTitle "playchess.com"]
[Source "ChessBase"]
[SourceQuality "1"]
[TimeControl "5400+30"]

1. d4 {[%emt 0:03:00]} Nf6 {[%emt 0:01:00]} 2. c4 {[%emt 0:00:30]} e6 {[%emt 0:00:30]} 3. Nf3 {[%emt 0:00:00]} a6 {[%emt 0:00:30]} 4. g3 {[%emt 0:05:00]} b5 {[%emt 0:00:30]} 5. Bg2 {[%emt 0:00:30]} bxc4 {[%emt 0:00:30]} 6. Qa4 {[%emt 0:00:30]} Bb7 {[%emt 0:02:30]} 7. Qxc4 {[%emt 0:01:30]} d5 {[%emt 0:00:30]} 8. Qb3 {[%emt 0:01:30]} Qc8 {[%emt 0:00:30]} 9. O-O {[%emt 0:00:30]} Bd6 {[%emt 0:04:30]} 10. Bf4 {[%emt 0:04:30]} Bxf4 {[%emt 0:05:30]} 11. gxf4 {[%emt 0:00:30]} O-O {[%emt 0:02:30]} 12. Nbd2 {[%emt 0:05:30]} a5 {[%emt 0:05:30]} 13. Rfc1 {[%emt 0:02:30]} Nbd7 {[%emt 0:06:30]} 14. e3 {[%emt 0:03:30]} Qb8 {[%emt 0:06:30]} 15. Rc2 {[%emt 0:02:30]} c6 {[%emt 0:01:30]} 16. Rac1 {[%emt 0:00:30]} Rc8 {[%emt 0:02:30]} 17. Qa3 {[%emt 0:03:30]} Rc7 {[%emt 0:00:30]} 18. Ne1 {[%emt 0:06:30]} Qf8 {[%emt 0:06:30]} 19. Qxf8+ {[%emt 0:02:30]} Kxf8 {[%emt 0:00:30]} 20. Nd3 {[%emt 0:00:30]} Ke7 {[%emt 0:03:30]} 21. Nb3 {[%emt 0:00:30]} a4 {[%emt 0:02:30]} 22. Nbc5 {[%emt 0:00:30]} Nxc5 {[%emt 0:05:30]} 23. Rxc5 {[%emt 0:01:30]} Nd7 {[%emt 0:01:30]} 24. R5c3 {[%emt 0:00:30]} Kd6 {[%emt 0:04:30]} 25. f3 {[%emt 0:06:30]} Ba6 {[%emt 0:05:30]} 26. Ne5 {[%emt 0:06:30]} Nxe5 {[%emt 0:01:30]} 27. fxe5+ {[%emt 0:00:30]} Kd7 {[%emt 0:00:00]} 28. e4 {[%emt 0:00:00]} Bc4 {[%emt 0:01:00]} 29. b3 {[%emt 0:00:00]} axb3 {[%emt 0:01:30]} 30. axb3 {[%emt 0:00:30]} Bb5 {[%emt 0:00:00]} 31. f4 {[%emt 0:08:30]} Rca7 {[%emt 0:00:00]} 32. exd5 {[%emt 0:00:30]} exd5 {[%emt 0:03:30]} 33. Bh3+ {[%emt 0:00:30]} Ke7 {[%emt 0:07:30]} 34. Bf1 {[%emt 0:00:30]} Bxf1 {[%emt 0:00:30]} 35. Kxf1 {[%emt 0:00:30]} Rb8 {[%emt 0:00:00]} 36. Rxc6 {[%emt 0:03:30]} Rxb3 {[%emt 0:00:00]} 37. Rc7+ {[%emt 0:00:30]} Rxc7 {[%emt 0:00:30]} 38. Rxc7+ {[%emt 0:00:00]} Ke8 {[%emt 0:00:00]} 39. Ke2 {[%emt 0:00:00]} Rb2+ {[%emt 0:02:00]} 40. Ke3 {[%emt 0:00:30]} Rxh2 {[%emt 0:00:30]} 41. Rc5 {[%emt 0:00:00]} Rh3+ {[%emt 0:00:00]} 42. Ke2 {[%emt 0:00:00]} Rh4 {[%emt 0:03:27]} 43. Ke3 {[%emt 0:00:30]} g5 {[%emt 0:03:42]} 44. fxg5 {[%emt 0:02:30]} Re4+ {[%emt 0:00:30]} 45. Kd3 {[%emt 0:00:30]} Rg4 {[%emt 0:00:09]} 46. Rxd5 {[%emt 0:00:00]} Rxg5 {[%emt 0:00:00]} 47. Rd6 {[%emt 0:00:00]} h5 {[%emt 0:00:18]} 48. Rh6 {[%emt 0:00:00]} Kf8 {[%emt 0:00:07]} 49. e6 {[%emt 0:00:00]} fxe6 {[%emt 0:00:37]} 50. Rxe6 {[%emt 0:00:30]} Kf7 {[%emt 0:00:00]} 51. Re5 {[%emt 0:00:30]} Rxe5 {[%emt 0:03:09]} 52. dxe5 {[%emt 0:00:30]} h4 {[%emt 0:00:30]} 53. Ke3 {[%emt 0:00:30]} h3 {[%emt 0:00:00]} 54. Kf3 {[%emt 0:00:00]} h2 {[%emt 0:00:00]} 55. e6+ {[%emt 0:00:00]} Kxe6 {[%emt 0:00:30]} 56. Kg2 {[%emt 0:00:00]} Kf5 {[%emt 0:00:00]} 57. Kxh2 {[%emt 0:00:00]} 1/2-1/2

[Event "8th Mersin Open 2024"]
[Site "Mersin"]
[Date "2024.11.13"]
[Round "5"]
[White "Bayramov, Vugar"]
[Black "Zahedifar, Anahita"]
[Result "1/2-1/2"]
[ECO "D46"]
[WhiteElo "2133"]
[BlackElo "2008"]
[Annotator "RC"]
[PlyCount "89"]
[EventDate "2024.11.10"]
[EventType "swiss"]
[EventCountry "TUR"]
[SourceTitle "playchess.com"]
[Source "ChessBase"]
[SourceQuality "1"]
[TimeControl "5400+30"]

1. d4 {[%emt 0:01:00]} d5 {[%emt 0:08:00]} 2. Nf3 {[%emt 0:00:30]} Nf6 {[%emt 0:00:30]} 3. c4 {[%emt 0:00:00]} c6 {[%emt 0:01:30]} 4. Nc3 {[%emt 0:00:00]} e6 {[%emt 0:00:00]} 5. e3 {[%emt 0:00:30]} Nbd7 {[%emt 0:01:00]} 6. Qc2 {[%emt 0:00:30]} Bd6 {[%emt 0:00:30]} 7. Bd3 {[%emt 0:00:00]} O-O {[%emt 0:02:30]} 8. O-O {[%emt 0:00:00]} e5 {[%emt 0:00:30]} 9. cxd5 {[%emt 0:00:30]} cxd5 {[%emt 0:00:30]} 10. e4 {[%emt 0:00:30]} exd4 {[%emt 0:02:30]} 11. Nxd5 {[%emt 0:00:30]} Nxd5 {[%emt 0:02:30]} 12. exd5 {[%emt 0:00:30]} Nf6 {[%emt 0:00:30]} 13. Bg5 {[%emt 0:03:30]} h6 {[%emt 0:02:30]} 14. Bh4 {[%emt 0:01:30]} Be7 {[%emt 0:08:30]} 15. Nxd4 {[%emt 0:16:30]} Nxd5 {[%emt 0:10:30]} 16. Bxe7 {[%emt 0:02:30]} Qxe7 {[%emt 0:00:30]} 17. Rfe1 {[%emt 0:01:30]} Qf6 {[%emt 0:01:30]} 18. Qc5 {[%emt 0:07:30]} Be6 {[%emt 0:08:30]} 19. Rad1 {[%emt 0:11:30]} b6 {[%emt 0:07:30]} 20. Qa3 {[%emt 0:02:30]} Bg4 {[%emt 0:05:30]} 21. Be2 {[%emt 0:08:30]} Bxe2 {[%emt 0:02:30]} 22. Rxe2 {[%emt 0:03:30]} Nf4 {[%emt 0:03:30]} 23. Red2 {[%emt 0:02:30]} Rad8 {[%emt 0:04:30]} 24. Qf3 {[%emt 0:02:30]} Rfe8 {[%emt 0:04:30]} 25. Kf1 {[%emt 0:00:30]} Qg5 {[%emt 0:05:55]} 26. a4 {[%emt 0:06:30]} Rd6 {[%emt 0:03:50]} 27. g3 {[%emt 0:04:30]} Ng6 {[%emt 0:03:10]} 28. h4 {[%emt 0:09:09]} Qc5 {[%emt 0:02:17]} 29. b3 {[%emt 0:03:59]} Ne5 {[%emt 0:01:26]} 30. Qe4 {[%emt 0:03:49]} Red8 {[%emt 0:01:19]} 31. Kg2 {[%emt 0:04:11]} f5 {[%emt 0:02:23]} 32. Qf4 {[%emt 0:00:58]} Ng6 {[%emt 0:00:55]} 33. Qe3 {[%emt 0:00:49]} f4 {[%emt 0:03:12]} 34. Qe4 {[%emt 0:00:07]} Qh5 {[%emt 0:01:58]} 35. Nf3 {[%emt 0:01:54]} Rxd2 {[%emt 0:00:41]} 36. Nxd2 {[%emt 0:00:13]} fxg3 {[%emt 0:00:19]} 37. fxg3 {[%emt 0:00:27]} Ne5 {[%emt 0:00:32]} 38. Qd5+ {[%emt 0:00:37]} Kf8 {[%emt 0:00:30]} 39. Qa8 {[%emt 0:02:16]} Qe8 {[%emt 0:00:08]} 40. Qe4 {[%emt 0:01:24]} Qc6 {[%emt 0:00:13]} 41. Qxc6 {[%emt 0:00:10]} Nxc6 {[%emt 0:00:30]} 42. Kf3 {[%emt 0:00:00]} Ke7 {[%emt 0:00:27]} 43. Ke4 {[%emt 0:00:00]} Ke6 {[%emt 0:00:16]} 44. Nf3 {[%emt 0:00:06]} g6 {[%emt 0:00:11]} 45. g4 {[%emt 0:01:54]} 1/2-1/2

[Event "8th Mersin Open 2024"]
[Site "Mersin"]
[Date "2024.11.13"]
[Round "5"]
[White "Mohannad, Farhan"]
[Black "Khalili, Saeid"]
[Result "1/2-1/2"]
[ECO "D52"]
[WhiteElo "2115"]
[BlackElo "2066"]
[Annotator "RC"]
[PlyCount "49"]
[EventDate "2024.11.10"]
[EventType "swiss"]
[EventCountry "TUR"]
[SourceTitle "playchess.com"]
[Source "ChessBase"]
[SourceQuality "1"]
[TimeControl "5400+30"]

1. d4 {[%emt 0:01:00]} d5 {[%emt 0:02:00]} 2. c4 {[%emt 0:00:00]} e6 {[%emt 0:00:30]} 3. Nc3 {[%emt 0:00:00]} Nf6 {[%emt 0:00:30]} 4. Bg5 {[%emt 0:00:30]} c6 {[%emt 0:01:30]} 5. e3 {[%emt 0:00:00]} Nbd7 {[%emt 0:00:30]} 6. Nf3 {[%emt 0:00:00]} Qa5 {[%emt 0:01:30]} 7. Nd2 {[%emt 0:04:30]} Ne4 {[%emt 0:05:30]} 8. Ndxe4 {[%emt 0:03:30]} dxe4 {[%emt 0:00:30]} 9. Bh4 {[%emt 0:00:30]} Bb4 {[%emt 0:01:30]} 10. Qc2 {[%emt 0:00:30]} O-O {[%emt 0:01:30]} 11. Be2 {[%emt 0:00:30]} f5 {[%emt 0:06:30]} 12. O-O {[%emt 0:00:30]} Nf6 {[%emt 0:02:30]} 13. Bg3 {[%emt 0:05:30]} Qd8 {[%emt 0:03:30]} 14. Rad1 {[%emt 0:08:30]} Bd6 {[%emt 0:01:30]} 15. Bh4 {[%emt 0:00:30]} Qc7 {[%emt 0:02:30]} 16. c5 {[%emt 0:00:30]} Be7 {[%emt 0:04:30]} 17. Bg3 {[%emt 0:00:30]} Qd8 {[%emt 0:00:30]} 18. b4 {[%emt 0:04:30]} Nd5 {[%emt 0:01:30]} 19. b5 {[%emt 0:00:30]} Bd7 {[%emt 0:00:30]} 20. a4 {[%emt 0:03:30]} g5 {[%emt 0:03:30]} 21. Be5 {[%emt 0:00:30]} Bf6 {[%emt 0:02:30]} 22. Bd6 {[%emt 0:01:30]} Be7 {[%emt 0:00:30]} 23. Be5 {[%emt 0:01:30]} Bf6 {[%emt 0:01:30]} 24. Bd6 {[%emt 0:13:30]} Be7 {[%emt 0:00:30]} 25. Be5 {[%emt 0:08:30]} 1/2-1/2

[Event "8th Mersin Open 2024"]
[Site "Mersin"]
[Date "2024.11.13"]
[Round "5"]
[White "Akkara, Omer"]
[Black "Sanz Wawer, Daniel"]
[Result "0-1"]
[ECO "B12"]
[WhiteElo "2103"]
[BlackElo "2254"]
[Annotator "RC"]
[PlyCount "70"]
[EventDate "2024.11.10"]
[EventType "swiss"]
[EventCountry "TUR"]
[SourceTitle "playchess.com"]
[Source "ChessBase"]
[SourceQuality "1"]
[TimeControl "5400+30"]

1. e4 {[%emt 0:01:00]} c6 {[%emt 0:01:00]} 2. d4 {[%emt 0:00:00]} d5 {[%emt 0:00:00]} 3. e5 {[%emt 0:01:00]} c5 {[%emt 0:00:00]} 4. dxc5 {[%emt 0:00:30]} e6 {[%emt 0:00:30]} 5. a3 {[%emt 0:00:00]} Nc6 {[%emt 0:00:00]} 6. Nf3 {[%emt 0:01:00]} Bxc5 {[%emt 0:00:00]} 7. b4 {[%emt 0:00:30]} Bb6 {[%emt 0:00:00]} 8. Bb2 {[%emt 0:00:30]} Nge7 {[%emt 0:00:00]} 9. c4 {[%emt 0:01:30]} dxc4 {[%emt 0:04:30]} 10. Qxd8+ {[%emt 0:00:30]} Nxd8 {[%emt 0:00:00]} 11. Bxc4 {[%emt 0:00:30]} Bd7 {[%emt 0:01:00]} 12. Nbd2 {[%emt 0:02:30]} O-O {[%emt 0:04:30]} 13. O-O {[%emt 0:00:30]} a6 {[%emt 0:14:30]} 14. Bd3 {[%emt 0:20:30]} Bc6 {[%emt 0:04:30]} 15. Nc4 {[%emt 0:00:30]} Ba7 {[%emt 0:00:30]} 16. Ng5 {[%emt 0:00:30]} Ng6 {[%emt 0:18:30]} 17. Nd6 {[%emt 0:04:30]} h6 {[%emt 0:10:30]} 18. Ngxf7 {[%emt 0:08:30]} Nf4 {[%emt 0:13:30]} 19. Nxd8 {[%emt 0:00:30]} Raxd8 {[%emt 0:01:30]} 20. Bc4 {[%emt 0:01:30]} Bxg2 {[%emt 0:05:30]} 21. Bxe6+ {[%emt 0:01:30]} Kh7 {[%emt 0:01:18]} 22. Bf5+ {[%emt 0:01:30]} g6 {[%emt 0:01:36]} 23. Rfc1 {[%emt 0:00:30]} gxf5 {[%emt 0:03:40]} 24. Rc7+ {[%emt 0:00:30]} Kg6 {[%emt 0:00:59]} 25. h4 {[%emt 0:14:30]} Rg8 {[%emt 0:01:43]} 26. Kh2 {[%emt 0:01:30]} Bxf2 {[%emt 0:06:42]} 27. Bc1 {[%emt 0:03:30]} Ne6 {[%emt 0:04:07]} 28. Rf7 {[%emt 0:05:30]} Bxh4 {[%emt 0:01:25]} 29. Kxg2 {[%emt 0:02:30]} Rxd6 {[%emt 0:00:43]} 30. Rxb7 {[%emt 0:00:00]} Rd1 {[%emt 0:00:37]} 31. Rb6 {[%emt 0:01:00]} Kf7+ {[%emt 0:01:24]} 32. Kh2 {[%emt 0:01:30]} Bg3+ {[%emt 0:00:14]} 33. Kh3 {[%emt 0:00:00]} Rxc1 {[%emt 0:00:57]} 34. Rb7+ {[%emt 0:01:00]} Rc7 {[%emt 0:00:30]} 35. Rxc7+ {[%emt 0:00:30]} Nxc7 {[%emt 0:00:00]} 0-1